Workbook

Sheet Лист1
A1: 2. План учебного процесса
A2: Индекс | B2: Наименование циклов, дисциплин, профессиональных модулей, МДК, практик | C2: Формы промежуточной аттестации | D2: Объем образовательной нагрузки | E2: Учебная нагрузка обучающихся (час.) | M2: Распределение учебной нагрузки по курсам и семестрам (час. в семестр)
E3: Самостоятельная учебная работа | F3: Во взаимодействии с преподавателем | M3: I курс | O3: II курс | Q3: III курс
F4: Нагрузка на дисциплины и МДК | J4: По практике производственной и учебной | K4: Консультации | L4: Промежуточная аттестация | M4: 1 сем./ три. 17 нед. | N4: 2 сем./ трим. 24 нед. | O4: 3 сем./ трим. 17 нед. | P4: 4 сем./ трим. 24 нед. | Q4: 5 сем./ трим. 17 нед. | R4: 6 сем./ трим. 25 нед.
F5: Всего учебных занятий | G5: в т.ч. по учебным дисциплинам и МДК
G6: теоретического обучения | H6: лаб. и практ. занятий | I6: курсовых работ (проектов)
A7: 1 | B7: 2 | C7: 3 | D7: 4 | E7: 5 | F7: 6 | G7: 7 | H7: 8 | I7: 9 | J7: 10 | K7: 11 | L7: 12 | M7: 13 | N7: 14 | O7: 15 | P7: 16 | Q7: 17 | R7: 18
A8: ОУД.00 | B8: Общеобразовательные учебные дисциплины | C8: 2/9/4 | D8: =SUM(D9:D23) -> 1476 | E8: =SUM(E9:E23) -> 0 | F8: 1402 | G8: 889 | H8: 513 | I8: 0 | J8: 0 | K8: 50 | L8: 24 | M8: 612 | N8: 864 | O8: 0 | P8: 0 | Q8: 0 | R8: 0
A9: ОУД.01 | B9: Русский язык | C9: Э | D9: =E9+F9+K9+L9 -> 90 | E9: 0 | F9: =G9+H9 -> 78 | G9: 78 | H9: 0 | I9: 0 | J9: 0 | K9: 6 | L9: 6 | M9: 90 | N9: 0 | O9: 0 | P9: 0 | Q9: 0 | R9: 0
A10: ОУД.02 | B10: Литература | C10: -, ДЗ | D10: =E10+F10+K10+L10 -> 148 | E10: 0 | F10: =G10+H10 -> 144 | G10: 144 | H10: 0 | I10: 0 | J10: 0 | K10: 4 | L10: 0 | M10: 61 | N10: 87 | O10: 0 | P10: 0 | Q10: 0 | R10: 0
A11: ОУД.03 | B11: Иностранный язык | C11: -, ДЗ | D11: 108 | E11: 0 | F11: 104 | G11: 2 | H11: 102 | I11: 0 | J11: 0 | K11: 4 | L11: 0 | M11: 0 | N11: 108 | O11: 0 | P11: 0 | Q11: 0 | R11: 0
A12: ОУД.04 | B12: Математика | C12: -, Э | D12: 246 | E12: 0 | F12: 234 | G12: 174 | H12: 60 | I12: 0 | J12: 0 | K12: 6 | L12: 6 | M12: 161 | N12: 85 | O12: 0 | P12: 0 | Q12: 0 | R12: 0
A13: ОУД.05 | B13: Информатика | C13: Э | D13: 93 | E13: 0 | F13: =G13+H13 -> 81 | G13: 12 | H13: 69 | I13: 0 | J13: 0 | K13: 6 | L13: 6 | M13: 36 | N13: 57 | O13: 0 | P13: 0 | Q13: 0 | R13: 0
A14: ОУД.06 | B14: Физика | C14: -, Э | D14: =E14+F14+K14+L14 -> 108 | E14: 0 | F14: =G14+H14 -> 96 | G14: 50 | H14: 46 | I14: 0 | J14: 0 | K14: 6 | L14: 6 | M14: 52 | N14: 56 | O14: 0 | P14: 0 | Q14: 0 | R14: 0
A15: ОУД.07 | B15: Химия | C15: ДЗ | D15: 52 | E15: 0 | F15: 50 | G15: 36 | H15: 14 | I15: 0 | J15: 0 | K15: 2 | L15: 0 | M15: 34 | N15: 18 | O15: 0 | P15: 0 | Q15: 0 | R15: 0
A16: ОУД.08 | B16: Биология | D16: =E16+F16+K16+L16 -> 42 | E16: 0 | F16: =G16+H16 -> 40 | G16: 32 | H16: 8 | I16: 0 | J16: 0 | K16: 2 | L16: 0 | M16: 42 | N16: 0 | O16: 0 | P16: 0 | Q16: 0 | R16: 0
A17: ОУД.09 | B17: История | C17: -, ДЗ | D17: 138 | E17: 0 | F17: 134 | G17: 104 | H17: 30 | I17: 0 | J17: 0 | K17: 4 | L17: 0 | M17: 56 | N17: 82 | O17: 0 | P17: 0 | Q17: 0 | R17: 0
A18: ОУД.10 | B18: Обществознание | C18: ДЗ | D18: 65 | E18: 0 | F18: 63 | G18: 45 | H18: 18 | I18: 0 | J18: 0 | K18: 2 | L18: 0 | M18: 0 | N18: 65 | O18: 0 | P18: 0 | Q18: 0 | R18: 0
A19: ОУД.11 | B19: География | C19: ДЗ | D19: 72 | E19: 0 | F19: 70 | G19: 62 | H19: 8 | I19: 0 | J19: 0 | K19: 2 | L19: 0 | M19: 0 | N19: 72 | O19: 0 | P19: 0 | Q19: 0 | R19: 0
A20: ОУД.12 | B20: Физическая культура | C20: З, ДЗ | D20: 126 | E20: 0 | F20: 126 | G20: 4 | H20: 122 | I20: 0 | J20: 0 | K20: 0 | L20: 0 | M20: 48 | N20: 78 | O20: 0 | P20: 0 | Q20: 0 | R20: 0
A21: ОУД.13 | B21: Основы безопасности жизнедеятельности | C21: ДЗ | D21: 68 | E21: 0 | F21: 66 | G21: 50 | H21: 16 | I21: 0 | J21: 0 | K21: 2 | L21: 0 | M21: 0 | N21: 68 | O21: 0 | P21: 0 | Q21: 0 | R21: 0
A22: ОУД.14 | B22: Родной язык | C22: ДЗ | D22: =E22+F22+K22+L22 -> 82 | E22: 0 | F22: =G22+H22 -> 78 | G22: 78 | H22: 0 | I22: 0 | J22: 0 | K22: 4 | L22: 0 | M22: 32 | N22: 50 | O22: 0 | P22: 0 | Q22: 0 | R22: 0
A23: ОУД.15 | B23: Индивидуальный проект | C23: З | D23: 38 | E23: 0 | F23: =G23+H23 -> 38 | G23: 18 | H23: 20 | I23: 0 | J23: 0 | K23: 0 | L23: 0 | M23: 0 | N23: 38 | O23: 0 | P23: 0 | Q23: 0 | R23: 0
A24: СГ. 00 | B24: Социально -гуманитарный цикл | C24: 1/4/- | D24: =SUM(D25:D28) -> 244 | E24: =SUM(E25:E28) -> 4 | F24: 240 | G24: 62 | H24: 178 | I24: 0 | J24: 0 | K24: 0 | L24: 0 | M24: 0 | N24: 0 | O24: 0 | P24: 32 | Q24: 104 | R24: 108
A25: СГ.01 | B25: История России | C25: З | D25: 32 | E25: 4 | F25: 28 | G25: 14 | H25: 14 | I25: 0 | J25: 0 | K25: 0 | L25: 0 | M25: 0 | N25: 0 | O25: 0 | P25: 32 | Q25: 0 | R25: 0
A26: СГ.02 | B26: Иностранный язык в профессиональной деятельности | C26: -, -, -, -, -, ДЗ | D26: 72 | E26: 0 | F26: 72 | G26: 0 | H26: 72 | I26: 0 | J26: 0 | K26: 0 | L26: 0 | M26: 0 | N26: 0 | O26: 0 | P26: 0 | Q26: 52 | R26: 20
A27: СГ.03 | B27: Физическая культура | C27: ДЗ,ДЗ | D27: 72 | E27: 0 | F27: 72 | G27: 2 | H27: 70 | I27: 0 | J27: 0 | K27: 0 | L27: 0 | M27: 0 | N27: 0 | O27: 0 | P27: 0 | Q27: 52 | R27: 20
A28: СГ.04 | B28: Безопасность жизнедеятельности | C28: ДЗ | D28: 68 | E28: 0 | F28: 68 | G28: 46 | H28: 22 | I28: 0 | J28: 0 | K28: 0 | L28: 0 | M28: 0 | N28: 0 | O28: 0 | P28: 0 | Q28: 0 | R28: 68
A29: ОП.00 | B29: Общепрофессиональный цикл | C29: 3/8/1 | D29: =SUM(D30:D42) -> 542 | E29: =SUM(E30:E42) -> 8 | F29: 534 | G29: =G30+G31+G32+G33+G34+G35+G36+G37+G38+G39+G40+G41+G42 -> 258 | H29: =H30+H31+H32+H33+H34+H35+H36+H37+H38+H39+H40+H41+H42 -> 270 | I29: =I30+I31+I32+I33+I34+I35+I36+I37+I38+I39+I40+I41+I42 -> 0 | J29: 0 | K29: 0 | L29: 6 | M29: 0 | N29: 0 | O29: =O30+O31+O32+O33+O34+O35+O36+O37+O38+O39+O40+O41+O42 -> 172 | P29: =P30+P31+P32+P33+P34+P35+P36+P37+P38+P39+P40+P41+P42 -> 224 | Q29: =Q30+Q31+Q32+Q33+Q34+Q35+Q36+Q37+Q38+Q39+Q40+Q41+Q42 -> 80 | R29: =R30+R31+R32+R33+R34+R35+R36+R37+R38+R39+R40+R41+R42 -> 66
A30: ОП.01 | B30: Математические методы решения прикладных профессиональных задач | C30: -, ДЗ | D30: 36 | E30: 0 | F30: 36 | G30: 16 | H30: 20 | I30: 0 | J30: 0 | K30: 0 | L30: 0 | M30: 0 | N30: 0 | O30: 0 | P30: 36 | Q30: 0 | R30: 0
A31: ОП.02 | B31: Экологические основы природопользования | C31: З | D31: 32 | E31: 0 | F31: 32 | G31: 10 | H31: 22 | I31: 0 | J31: 0 | K31: 0 | L31: 0 | M31: 0 | N31: 0 | O31: 0 | P31: 32 | Q31: 0 | R31: 0
A32: ОП.03 | B32: Инженерная графика | C32: -, ДЗ | D32: 58 | E32: 8 | F32: 50 | G32: 2 | H32: 48 | I32: 0 | J32: 0 | K32: 0 | L32: 0 | M32: 0 | N32: 0 | O32: 34 | P32: 24 | Q32: 0 | R32: 0
A33: ОП.04 | B33: Техническая механика | C33: -, Э | D33: 64 | E33: 0 | F33: 64 | G33: 32 | H33: 26 | I33: 0 | J33: 0 | K33: 0 | L33: 6 | M33: 0 | N33: 0 | O33: 34 | P33: 30 | Q33: 0 | R33: 0
A34: ОП.05 | B34: Материаловедение | C34: ДЗ | D34: 70 | E34: 0 | F34: 70 | G34: 26 | H34: 44 | I34: 0 | J34: 0 | K34: 0 | L34: 0 | M34: 0 | N34: 0 | O34: 0 | P34: 70 | Q34: 0 | R34: 0
A35: ОП.06 | B35: Электротехника и электроника | C35: -, ДЗ | D35: 40 | E35: 0 | F35: 40 | G35: 26 | H35: 14 | I35: 0 | J35: 0 | K35: 0 | L35: 0 | M35: 0 | N35: 0 | O35: 40 | P35: 0 | Q35: 0 | R35: 0
A36: ОП.07 | B36: Основы гидравлики и теплотехники | C36: -, ДЗ | D36: 32 | E36: 0 | F36: 32 | G36: 16 | H36: 16 | I36: 0 | J36: 0 | K36: 0 | L36: 0 | M36: 0 | N36: 0 | O36: 0 | P36: 32 | Q36: 0 | R36: 0
A37: ОП.08 | B37: Основы агрономии | C37: ДЗ | D37: 32 | E37: 0 | F37: 32 | G37: 18 | H37: 14 | I37: 0 | J37: 0 | K37: 0 | L37: 0 | M37: 0 | N37: 0 | O37: 32 | P37: 0 | Q37: 0 | R37: 0
A38: ОП.09 | B38: Основы зоотехнии | D38: 32 | E38: 0 | F38: =G38+H38+I38 -> 32 | G38: 14 | H38: 18 | I38: 0 | J38: 0 | K38: 0 | L38: 0 | M38: 0 | N38: 0 | O38: 32 | P38: 0 | Q38: 0 | R38: 0
A39: ОП.10 | B39: Информационные технологии в профессиональой деятельности | C39: З | D39: 32 | E39: 0 | F39: 32 | G39: 16 | H39: 16 | I39: 0 | J39: 0 | K39: 0 | L39: 0 | M39: 0 | N39: 0 | O39: 0 | P39: 0 | Q39: 32 | R39: 0
A40: ОП.11 | B40: Основы взаимозаменяемости и технические измерения | C40: З | D40: 32 | E40: 0 | F40: 32 | G40: 20 | H40: 12 | I40: 0 | J40: 0 | K40: 0 | L40: 0 | M40: 0 | N40: 0 | O40: 0 | P40: 0 | Q40: 0 | R40: 32
A41: ОП.12 | B41: Основы экономики, менеджмента и маркетинга | C41: ДЗ | D41: 34 | E41: 0 | F41: 34 | G41: 24 | H41: 10 | I41: 0 | J41: 0 | K41: 0 | L41: 0 | M41: 0 | N41: 0 | O41: 0 | P41: 0 | Q41: 0 | R41: 34
A42: ОП.13 | B42: Правовые основы профессиональной деятельности | C42: ДЗ | D42: 48 | E42: 0 | F42: 48 | G42: 38 | H42: 10 | I42: 0 | J42: 0 | K42: 0 | L42: 0 | M42: 0 | N42: 0 | O42: 0 | P42: 0 | Q42: 48 | R42: 0
A43: П.00 | B43: Профессиональный цикл | C43: -/8/9 | D43: =D44+D52+D58+D62+D66 -> 1986 | E43: 6 | F43: 1980 | G43: 510 | H43: 484 | I43: 20 | J43: 900 | K43: 0 | L43: 66 | M43: 0 | N43: 0 | O43: 440 | P43: 644 | Q43: 428 | R43: 474
A44: ПМ.01 | B44: Подготовка машин, механизмов, установок, приспособлений к работе, комплектование сборочных единиц | C44: -/2/3 | D44: =D45+D46+D47+D48+D49+D50+D51 -> 913 | E44: 0 | F44: =F45+F46+F47+F48+F49+F50+F51 -> 913 | G44: 250 | H44: 315 | I44: 0 | J44: 324 | K44: 0 | L44: 24 | M44: 0 | N44: 0 | O44: 440 | P44: 461 | Q44: 12 | R44: 0
A45: МДК. 01.01 | B45: Назначение , устройство, принцип работы и регулировки тракторов и автомобилей | C45: -,-,-, Э | D45: 225 | E45: 0 | F45: 225 | G45: 104 | H45: 115 | I45: 0 | J45: 0 | K45: 0 | L45: 6 | O45: 114 | P45: 111 | Q45: 0 | R45: 0
A46: МДК. 01.02 | B46: Назначение, устройство, принцип работы и регулировки сельскохозяйственных машин и обрудования | C46: -,-,Э | D46: 208 | E46: 0 | F46: 208 | G46: 82 | H46: 120 | I46: 0 | J46: 0 | K46: 0 | L46: 6 | O46: 118 | P46: 90 | Q46: 0 | R46: 0
A47: МДК. 01.03 | B47: Комплектование и подготовка к работе машинно-тракторных агрегатов для выполнения сельскохозяйственных работ | D47: 108 | E47: 0 | F47: 108 | G47: 48 | H47: 60 | I47: 0 | J47: 0 | K47: 0 | L47: 0 | O47: 64 | P47: 44 | Q47: 0 | R47: 0
A48: МДК. 01.04 | B48: Устройство, принцип работы и обслуживание оборудовании живодноводческих ферм и комплексов | C48: ДЗ | D48: 36 | E48: 0 | F48: 36 | G48: 16 | H48: 20 | I48: 0 | J48: 0 | K48: 0 | L48: 0 | M48: 0 | N48: 0 | O48: 36 | P48: 0 | Q48: 0 | R48: 0
A49: УП.01 | B49: Учебная практика | C49: -, -, ДЗ | D49: 252 | E49: 0 | F49: 252 | G49: 0 | H49: 0 | I49: 0 | J49: 252 | K49: 0 | L49: 0 | M49: 0 | O49: 108 | P49: 144 | Q49: 0 | R49: 0
A50: ПП.01 | B50: Производственная практика | D50: 72 | E50: 0 | F50: 72 | G50: 0 | H50: 0 | I50: 0 | J50: 72 | K50: 0 | L50: 0 | M50: 0 | N50: 0 | O50: 0 | P50: 72 | Q50: 0 | R50: 0
A51: ПА | B51: Промежуточная аттестация | C51: Э | D51: 12 | E51: 0 | F51: 12 | G51: 0 | H51: 0 | I51: 0 | J51: 0 | K51: 0 | L51: 12 | M51: 0 | N51: 0 | O51: 0 | P51: 0 | Q51: 12 | R51: 0
A52: ПМ.02 | B52: Ремонт сельскохозяйственной техники и оборудования | C52: -/1/2 | D52: =D53+D54+D55+D56+D57 -> 548 | E52: 6 | F52: 542 | G52: 86 | H52: 64 | I52: 20 | J52: 360 | K52: 0 | L52: 12 | M52: =SUM(M53:M57) -> 0 | N52: =SUM(N53:N57) -> 0 | O52: =SUM(O53:O57) -> 0 | P52: =P53+P54+P55+P56+P57 -> 120 | Q52: =Q53+Q54+Q55+Q56+Q57 -> 167 | R52: =SUM(R53:R57) -> 261
A53: МДК. 02.01 | B53: Система технического обслуживания и ремонта сельскохозяйственной техники и оборудования | C53: -,-,Э | D53: 100 | E53: 6 | F53: 94 | G53: 38 | H53: 36 | I53: 20 | J53: 0 | K53: 0 | L53: 0 | M53: 0 | N53: 0 | O53: 0 | P53: 48 | Q53: 52 | R53: 0
A54: МДК. 02.03 | B54: Технологические процессы ремонтного производства | D54: 76 | E54: 0 | F54: 76 | G54: 48 | H54: 28 | I54: 0 | J54: 0 | K54: 0 | L54: 0 | M54: 0 | N54: 0 | O54: 0 | P54: 0 | Q54: 43 | R54: 33
A55: УП.02 | B55: Учебная практика | C55: ДЗ | D55: 216 | E55: 0 | F55: 216 | G55: 0 | H55: 0 | I55: 0 | J55: 216 | K55: 0 | L55: 0 | M55: 0 | N55: 0 | O55: 0 | P55: 72 | Q55: 72 | R55: 72
A56: ПП.02 | B56: Производственная практика | D56: 144 | E56: 0 | F56: 144 | G56: 0 | H56: 0 | I56: 0 | J56: 144 | K56: 0 | L56: 0 | M56: 0 | N56: 0 | O56: 0 | P56: 0 | Q56: 0 | R56: 144
A57: ПА | B57: Промежуточная аттестация | C57: Э | D57: 12 | E57: 0 | F57: 12 | G57: 0 | H57: 0 | I57: 0 | J57: 0 | L57: 12 | M57: 0 | N57: 0 | O57: 0 | P57: 0 | Q57: 0 | R57: 12
A58: ПМ.03 | B58: Эксплуатация тракторов, комбайнов и сельскохозяйственных машин в условиях селькохозяйственного производства | C58: -/1/1 | D58: =D59+D60+D61 -> 204 | E58: =E59+E60+E61 -> 0 | F58: =F59+F60+F61 -> 204 | G58: =G59+G60+G61 -> 18 | H58: =H59+H60+H61 -> 30 | I58: =SUM(I59:I61) -> 0 | J58: =J59+J60+J61 -> 144 | K58: =SUM(K59:K61) -> 0 | L58: =SUM(L59:L61) -> 12 | M58: =SUM(M59:M61) -> 0 | N58: =SUM(N59:N61) -> 0 | O58: =SUM(O59:O61) -> 0 | P58: =P59+P60+P61 -> 63 | Q58: =Q59+Q60+Q61 -> 141 | R58: =SUM(R59:R61) -> 0
A59: МДК. 03.01 | B59: Освоение профессии рабочего 19205 Тракторист - машинист сельскохозяйственного производства (категории "В", "С","D", "Е","F") | C59: -, ДЗ | D59: 48 | E59: 0 | F59: 48 | G59: 18 | H59: 30 | I59: 0 | J59: 0 | K59: 0 | L59: 0 | M59: 0 | N59: 0 | O59: 0 | P59: 27 | Q59: 21 | R59: 0
A60: ПП.03 | B60: Производственная практика | D60: 144 | E60: 0 | F60: 144 | G60: 0 | H60: 0 | I60: 0 | J60: 144 | K60: 0 | L60: 0 | M60: 0 | N60: 0 | O60: 0 | P60: 36 | Q60: 108 | R60: 0
A61: ПА | B61: Промежуточная аттестация | C61: Э | D61: 12 | E61: 0 | F61: 12 | G61: 0 | H61: 0 | I61: 0 | J61: 0 | K61: 0 | L61: 12 | M61: 0 | N61: 0 | O61: 0 | P61: 0 | Q61: 12 | R61: 0
A62: ПМ.04 | B62: Освоение профессии рабочего Водитель автомобиля категории "В", "С" | C62: -/1/2 | D62: =D63+D64+D65 -> 216 | E62: 0 | F62: 216 | G62: 127 | H62: 41 | I62: 0 | J62: 36 | K62: 0 | L62: 12 | M62: =SUM(M63:M65) -> 0 | N62: =SUM(N63:N65) -> 0 | O62: =SUM(O63:O65) -> 0 | P62: =SUM(P63:P65) -> 0 | Q62: =Q63+Q64+Q65 -> 108 | R62: =R63+R64+R65 -> 108
A63: МДК. 04.01 | B63: Теоретическая подготовка водителей автомобиля категории "В", "С" | C63: Э | D63: 174 | E63: 0 | F63: 174 | G63: 127 | H63: 41 | I63: 0 | J63: 0 | K63: 0 | L63: 6 | M63: 0 | N63: 0 | O63: 0 | P63: 0 | Q63: 108 | R63: 66
A64: ПП.04 | B64: Производственная практика | C64: ДЗ | D64: 36 | E64: 0 | F64: 36 | G64: 0 | H64: 0 | I64: 0 | J64: 36 | K64: 0 | L64: 0 | M64: 0 | N64: 0 | O64: 0 | P64: 0 | Q64: 0 | R64: 36
B65: Квалификационный экзамен | C65: Э | D65: 6 | E65: 0 | F65: 6 | G65: 0 | H65: 0 | I65: 0 | J65: 0 | K65: 0 | L65: 6 | M65: 0 | N65: 0 | O65: 0 | P65: 0 | Q65: 0 | R65: 6
A66: ПМ.05 | B66: Цифровые технологии в агропромышленном комплексе | C66: -/1/1 | D66: =D67+D68+D69 -> 105 | E66: 0 | F66: 105 | G66: 29 | H66: 34 | I66: 0 | J66: 36 | K66: 0 | L66: 6 | M66: 0 | N66: 0 | O66: 0 | P66: 0 | Q66: 0 | R66: 105
A67: МДК. 05.01 | B67: Использование технологии цифрового земледелия | C67: ДЗ | D67: 63 | E67: 0 | F67: 63 | G67: 29 | H67: 34 | I67: 0 | J67: 0 | K67: 0 | L67: 0 | M67: 0 | N67: 0 | O67: 0 | P67: 0 | Q67: 0 | R67: 63
A68: УП.05 | B68: Учебная практика | D68: 36 | E68: 0 | F68: 36 | G68: 0 | H68: 0 | I68: 0 | J68: 36 | K68: 0 | L68: 0 | M68: 0 | N68: 0 | O68: 0 | P68: 0 | R68: 36
A69: ПА | B69: Промежуточная аттестация | C69: Э | D69: 6 | E69: 0 | F69: 6 | G69: 0 | H69: 0 | I69: 0 | J69: 0 | K69: 0 | L69: 6 | M69: 0 | N69: 0 | O69: 0 | P69: 0 | Q69: 0 | R69: 6
A70: ПДП | B70: Преддипломная практика | D70: 72 | E70: 0 | F70: 72 | G70: 0 | H70: 0 | I70: 0 | J70: 72 | K70: 0 | L70: 0 | M70: 0 | N70: 0 | O70: 0 | P70: 0 | Q70: 0 | R70: 72
A71: ГИА | B71: Государственная итоговая аттестация | D71: 144 | E71: 0 | F71: 144 | G71: 0 | H71: 0 | J71: 144 | K71: 0 | L71: 0 | M71: 0 | N71: 0 | O71: 0 | P71: 0 | Q71: 0 | R71: 144
A72: Итого | C72: 6/27/14 | D72: =D8+D24+D29+D43+D70+D71 -> 4464 | E72: 18 | F72: 4372 | G72: 1719 | H72: =H8+H24+H29+H43 -> 1445 | I72: 20 | J72: 972 | K72: =K8+K24+K29+K43+K70+K71 -> 50 | L72: 96 | M72: 612 | N72: 864 | O72: 612 | P72: 900 | Q72: 612 | R72: 864
G74: Всего | H74: дисциплин и МДК | M74: 612 | N74: 864 | O74: 612 | P74: =P72-P75-P76 -> 784 | Q74: =Q72-Q75-Q76 -> 612 | R74: 576
A75: Государственная (итоговая) атестация | H75: учебной практики | P75: =P47 -> 44 | Q75: =Q47 -> 0 | R75: 108
A76: 1. Программа обучения по специальности | H76: производств. практики | P76: =P50 -> 72 | Q76: =Q50 -> 0 | R76: =R50+R56+R64 -> 180
A77: 1.1. Дипломный проект (работа) | H77: преддиплом. практики
A78: Выполнение дипломного проекта (работы) с 18.05 по 14.06 (всего 4 нед.) | H78: экзаменов | M78: 1 | N78: 3 | O78: 0 | P78: 2 | Q78: 1 | R78: 4
A79: Защита дипломного проекта (работы) с 15.06 по 28.06 (всего 2 нед.) | H79: дифф. зачетов | M79: 0 | N79: 9 | O79: 2 | P79: 8 | Q79: 3 | R79: 6
A80: 1.2 Государственные экзамены (при их наличии в том числе в виде демонстрационного экзамена) - Выполнение демонстрационного экзамена | H80: зачетов | M80: 1 | N80: 1 | O80: 1 | P80: 1 | Q80: 1 | R80: 1
A82: Примечание: 24 часа отводится на обучение вождению тракторов и самоходных сельскохозяйственных машин на одного студента по графику вне учебной сетки, 72 часа отводится на обучение вождению грузового автомобиля на 1 студента по графику вне учебной сетки, 56 часов отводится на обучение вождению легкового автомобиля на 1 студента по графику вне учебной сетки.

Sheet Лист2

Sheet Лист3
